bitfinex-derivatives/quotes_BTCF0:USTF0_20250722
["timestamp","ask_amount","ask_price","bid_price","bid_amount"]
[1753217607185,0.73974,119870.0,119860.0,0.4738196]
[1753217607388,0.34838834,119880.0,119870.0,0.1788057]
[1753217607582,0.29016954,119880.0,119870.0,0.963129]
[1753217607786,0.42060954,119880.0,119870.0,0.963129]
[1753217608482,0.42060954,119880.0,119870.0,0.91329065]
[1753217609085,0.33723424,119880.0,119870.0,0.91329065]
[1753217609293,0.33923424,119880.0,119870.0,0.91329065]
[1753217609486,0.33923424,119880.0,119870.0,0.98804917]
[1753217609688,0.33923424,119880.0,119870.0,1.56512917]
[1753217609888,0.34123424,119880.0,119870.0,1.56512917]
[1753217610288,0.52777824,119880.0,119870.0,1.56512917]
[1753217610490,0.52777824,119880.0,119870.0,0.63722925]
[1753217610691,0.52777824,119880.0,119870.0,1.21426925]
[1753217611193,0.52777824,119880.0,119870.0,1.56508917]
[1753217611588,0.52777824,119880.0,119870.0,0.63722925]
[1753217611892,0.52777824,119880.0,119870.0,1.21422925]
[1753217611893,0.60618824,119880.0,119870.0,1.21422925]
[1753217612297,0.52777824,119880.0,119870.0,1.21422925]
[1753217613587,0.52777824,119880.0,119870.0,1.56504917]
[1753217613791,0.19860304,119880.0,119870.0,1.56504917]
[1753217613989,0.19860304,119880.0,119870.0,1.5651221]
[1753217614191,0.19860304,119880.0,119870.0,1.49036358]
[1753217614494,0.19660304,119880.0,119870.0,1.5651221]
[1753217614692,0.19460304,119880.0,119870.0,1.55634421]
[1753217614896,0.19460304,119880.0,119870.0,1.5661179]
[1753217615095,0.19460304,119880.0,119870.0,1.49135938]
[1753217615395,0.19460304,119880.0,119870.0,1.56583504]
[1753217616890,0.22658304,119880.0,119870.0,1.56583504]
[1753217618497,0.52366484,119880.0,119870.0,0.98883504]
[1753217618696,0.52366484,119880.0,119870.0,1.21485512]
[1753217619888,0.35692304,119880.0,119870.0,1.21485512]
[1753217620298,0.35692304,119880.0,119870.0,1.56567504]
[1753217620799,0.52366484,119880.0,119870.0,1.56567504]
[1753217623997,0.52366484,119880.0,119870.0,1.56567567]
[1753217624401,0.35692304,119880.0,119870.0,1.56567567]
[1753217624600,0.35692304,119880.0,119870.0,1.56567556]
[1753217625202,0.52366484,119880.0,119870.0,1.56567556]
[1753217625796,0.35692304,119880.0,119870.0,1.56567556]
[1753217626402,0.22658304,119880.0,119870.0,1.56567556]
[1753217627006,0.22658304,119880.0,119870.0,1.56567546]
[1753217627505,0.22658304,119880.0,119870.0,1.4911998]
[1753217627705,0.22658304,119880.0,119870.0,0.98875831]
[1753217627902,0.19460304,119880.0,119870.0,1.4909598]
[1753217628106,0.19460304,119880.0,119870.0,1.56536665]
[1753217628406,0.19460304,119880.0,119870.0,1.4909598]
[1753217631603,0.19460304,119880.0,119870.0,1.5949839]
[1753217633007,0.19460304,119880.0,119870.0,1.5721782]
[1753217633301,0.0002,119890.0,119880.0,0.1667418]
[1753217633506,0.2528444,119900.0,119890.0,0.4831879]
[1753217633707,0.2526444,119900.0,119890.0,1.42351893]
[1753217634007,0.3297644,119900.0,119890.0,1.42351875]
[1753217634207,0.3297644,119900.0,119890.0,1.45874379]
[1753217634508,0.3297644,119900.0,119890.0,0.54121706]
[1753217635708,0.3307644,119900.0,119890.0,0.54121706]
[1753217636306,0.3307644,119900.0,119890.0,0.61570566]
[1753217636509,0.5173084,119900.0,119890.0,0.61570566]
[1753217636808,0.94653832,119900.0,119890.0,0.44897776]
[1753217637009,0.94653832,119900.0,119890.0,0.61570576]
[1753217637810,0.86812832,119900.0,119890.0,0.61570576]
[1753217638199,0.5173084,119900.0,119890.0,0.61570576]
[1753217639409,0.5173084,119900.0,119890.0,0.54121716]
[1753217640808,0.5173084,119900.0,119890.0,0.61570576]
[1753217641411,0.5173084,119900.0,119890.0,0.60267483]
[1753217641612,0.5173084,119900.0,119890.0,0.61570556]
[1753217642914,0.94653832,119900.0,119890.0,0.44897756]
[1753217643211,0.5957184,119900.0,119890.0,0.44897756]
[1753217643513,0.94653832,119900.0,119890.0,0.61570546]
[1753217643713,0.94653832,119900.0,119890.0,0.44897756]
[1753217644014,0.94653832,119900.0,119890.0,0.61570546]
[1753217644312,0.94653832,119900.0,119890.0,0.44897756]
[1753217646615,0.94653832,119900.0,119890.0,0.37448896]
[1753217647814,0.94653832,119900.0,119890.0,0.43920445]
[1753217648218,0.94653832,119900.0,119890.0,0.60093761]
[1753217649318,0.5957184,119900.0,119890.0,0.43420971]
[1753217649714,0.5957184,119900.0,119890.0,0.60093761]
[1753217650320,0.391978,119900.0,119890.0,0.93872671]
[1753217650521,0.968098,119900.0,119890.0,0.90181073]
[1753217650727,0.518978,119900.0,119890.0,0.90181073]
[1753217650915,0.518978,119900.0,119890.0,0.90181036]
[1753217651121,0.597388,119900.0,119890.0,0.55099046]
[1753217651521,0.597388,119900.0,119890.0,0.62547906]
[1753217653428,0.597388,119900.0,119890.0,0.6026749]
[1753217653623,0.597388,119900.0,119890.0,0.62547899]
[1753217653824,0.518978,119900.0,119890.0,0.62547899]
[1753217654025,0.518978,119900.0,119890.0,0.97629891]
[1753217654829,0.518978,119900.0,119890.0,0.62547899]
[1753217656531,0.518978,119900.0,119890.0,0.6254785]
[1753217656732,1.094978,119900.0,119890.0,0.6254785]
[1753217657034,1.094978,119900.0,119890.0,0.97629842]
[1753217657634,1.094978,119900.0,119890.0,0.73508192]
[1753217657835,1.094978,119900.0,119890.0,0.90180982]
[1753217658136,1.094978,119900.0,119890.0,0.73508192]
[1753217658537,1.094978,119900.0,119890.0,0.384262]
[1753217658835,1.094978,119900.0,119890.0,0.5509899]
[1753217659328,1.094978,119900.0,119890.0,0.6254785]
[1753217659525,1.094978,119900.0,119890.0,0.60096979]
[1753217659729,1.094978,119900.0,119890.0,0.61074311]
[1753217660332,1.094978,119900.0,119890.0,0.61074316]
[1753217660837,0.768544,119900.0,119890.0,0.96156308]
[1753217661039,0.967848,119900.0,119890.0,0.90181022]
[1753217661336,1.013118,119900.0,119890.0,0.90181022]
[1753217661740,0.967848,119900.0,119890.0,0.90181022]
[1753217661931,0.225134,119900.0,119890.0,0.90181022]
[1753217662738,0.391848,119900.0,119890.0,0.9018098]
[1753217663836,0.518848,119900.0,119890.0,0.9018098]
[1753217664740,0.518848,119900.0,119890.0,0.7350819]
[1753217664939,0.597258,119900.0,119890.0,0.96002198]
[1753217665140,0.597258,119900.0,119890.0,0.38426198]
[1753217665340,0.597258,119900.0,119890.0,0.55098988]
[1753217665642,0.597258,119900.0,119890.0,0.38426198]
[1753217666039,0.597258,119900.0,119890.0,0.62547848]
[1753217666441,0.518848,119900.0,119890.0,0.62547848]
[1753217668443,0.518848,119900.0,119890.0,0.45875058]
[1753217668640,0.518848,119900.0,119890.0,0.62547848]
[1753217668839,0.518848,119900.0,119890.0,0.62547878]
[1753217671846,0.518848,119900.0,119890.0,0.6026749]
[1753217672046,0.518848,119900.0,119890.0,0.45875088]
[1753217672648,0.518848,119900.0,119890.0,0.62547878]
[1753217676452,0.518848,119900.0,119890.0,0.9762987]
[1753217677152,0.518848,119900.0,119890.0,0.62547878]
[1753217677959,0.518848,119900.0,119890.0,0.61570569]
[1753217678149,0.518848,119900.0,119890.0,0.62547864]
[1753217678649,0.518848,119900.0,119890.0,0.90181001]
[1753217678850,0.518848,119900.0,119890.0,0.80979075]
[1753217679052,0.518848,119900.0,119890.0,0.80001763]
[1753217680861,0.518848,119900.0,119890.0,0.72530903]
[1753217681461,0.518848,119900.0,119890.0,0.89203693]
[1753217681652,0.518848,119900.0,119890.0,0.90181011]
[1753217683464,1.094208,119900.0,119890.0,0.90181011]
[1753217683960,0.967208,119900.0,119890.0,0.90181011]
[1753217684162,0.192544,119900.0,119890.0,0.90181011]
[1753217684362,0.359258,119900.0,119890.0,0.90181011]
[1753217684662,0.192544,119900.0,119890.0,0.90181011]
[1753217684961,0.14335058,119920.0,119910.0,0.4812871]
[1753217685167,0.14335058,119920.0,119910.0,1.37517395]
[1753217685466,0.14335058,119920.0,119910.0,1.49411395]
[1753217685659,0.14335058,119920.0,119910.0,1.51679304]
[1753217686362,0.14435058,119920.0,119910.0,1.51679304]
[1753217686557,0.14635058,119920.0,119910.0,1.51679304]
[1753217686757,0.436084,119940.0,119930.0,0.14107]
[1753217686963,0.3160073,119940.0,119930.0,0.82030959]
[1753217687159,0.149333,119950.0,119940.0,0.30852]
[1753217687363,1.0450516,119950.0,119940.0,0.33119909]
[1753217687666,1.39531666,119950.0,119940.0,0.25591909]
[1753217687964,1.39531666,119950.0,119940.0,0.28137463]
[1753217688365,1.39527666,119950.0,119940.0,0.28137463]
[1753217688861,1.56202066,119950.0,119940.0,0.09072463]
[1753217689166,0.3865123,119930.0,119920.0,0.44813762]
[1753217689363,1.31189736,119930.0,119920.0,0.25030142]
[1753217690162,1.49844136,119930.0,119920.0,0.41698762]
[1753217690362,1.49844136,119930.0,119920.0,0.25030142]
[1753217690665,1.49844136,119930.0,119920.0,0.25130142]
[1753217690861,1.49844136,119930.0,119920.0,0.41798762]
[1753217691062,1.49844136,119930.0,119920.0,0.25130142]
[1753217691367,1.49844136,119930.0,119920.0,0.3188734]
[1753217692266,1.49844136,119930.0,119920.0,0.25922198]
[1753217693461,1.49844136,119930.0,119920.0,0.06857198]
[1753217693659,1.66520936,119930.0,119920.0,0.06857198]
[1753217695256,1.66620936,119930.0,119920.0,0.06757198]
[1753217695466,0.2743562,119920.0,119910.0,0.05965142]
[1753217695765,0.73679126,119920.0,119910.0,0.05965142]
[1753217695968,0.3865401,119910.0,119900.0,0.29289142]
[1753217696168,1.31176516,119910.0,119900.0,0.29289142]
[1753217696366,1.31176516,119910.0,119900.0,0.36817142]
[1753217697768,1.31176516,119910.0,119900.0,0.25030142]
[1753217698567,1.31176516,119910.0,119900.0,0.25130142]
[1753217700165,1.31176516,119910.0,119900.0,0.31939711]
[1753217700468,1.49830916,119910.0,119900.0,0.43826711]
[1753217700865,1.49830916,119910.0,119900.0,0.45129764]
[1753217701064,1.49830916,119910.0,119900.0,0.37601764]
[1753217701265,1.49830916,119910.0,119900.0,0.33342764]
[1753217701473,1.49830916,119910.0,119900.0,0.14277764]
[1753217701862,1.49830916,119910.0,119900.0,0.12974711]
[1753217702866,1.49830916,119910.0,119900.0,0.08312684]
[1753217703069,1.49830916,119910.0,119900.0,0.08212684]
[1753217703369,1.49830916,119910.0,119900.0,0.08112684]
[1753217703567,1.1480441,119910.0,119900.0,0.08112684]
[1753217703873,1.49830916,119910.0,119900.0,0.20006684]
[1753217704471,1.49830916,119910.0,119900.0,0.08112684]
[1753217704770,1.49830916,119910.0,119900.0,0.06809569]
[1753217704967,0.166714,119900.0,119890.0,0.29529982]
[1753217705169,0.92336306,119900.0,119890.0,0.30833113]
[1753217705373,0.92336306,119900.0,119890.0,0.33948113]
[1753217705672,0.92336306,119900.0,119890.0,0.35092113]
[1753217705871,0.92336306,119900.0,119890.0,0.42620113]
[1753217706072,0.573098,119900.0,119890.0,0.42620113]
[1753217706272,0.573098,119900.0,119890.0,0.42720113]
[1753217706771,0.573098,119900.0,119890.0,0.36854968]
[1753217709173,0.573098,119900.0,119890.0,0.4282011]
[1753217709571,0.92336306,119900.0,119890.0,0.45327304]
[1753217709768,0.92336306,119900.0,119890.0,0.17431176]
[1753217709968,0.573098,119900.0,119890.0,0.14749596]
[1753217710166,0.92336306,119900.0,119890.0,0.14749596]
[1753217710369,0.92336306,119900.0,119890.0,0.02956566]
[1753217710567,0.92336306,119900.0,119870.0,0.26926331]
[1753217710568,0.2739118,119880.0,119870.0,0.26926331]
[1753217710770,1.31110686,119880.0,119870.0,0.41024551]
[1753217711276,1.31110686,119880.0,119870.0,0.29401551]
[1753217711475,1.31110686,119880.0,119870.0,0.28229551]
[1753217711677,0.9608418,119880.0,119870.0,0.3119683]
[1753217711866,1.31110686,119880.0,119870.0,0.36522792]
[1753217712069,1.31110686,119880.0,119870.0,0.38822792]
[1753217712269,1.31110686,119880.0,119870.0,0.30508792]
[1753217712474,1.31110686,119880.0,119870.0,0.06577792]
[1753217712776,1.31110686,119880.0,119870.0,0.14697049]
[1753217712976,1.31110686,119880.0,119870.0,0.05210513]
[1753217713672,1.31110686,119880.0,119870.0,0.03907293]
[1753217713977,1.31110686,119880.0,119870.0,0.05210677]
[1753217714276,1.31110686,119880.0,119870.0,0.17564677]
[1753217715178,1.49765086,119880.0,119870.0,0.17564677]
[1753217716169,1.49765086,119880.0,119870.0,0.07737474]
[1753217716572,1.49765086,119880.0,119870.0,0.0643409]
[1753217717179,1.49771911,119880.0,119870.0,0.0372655]
[1753217717375,1.49771911,119880.0,119860.0,0.1945]
[1753217717573,1.49771911,119880.0,119860.0,0.26019066]
[1753217717574,0.73636076,119870.0,119860.0,0.26019066]
[1753217717779,0.73636076,119870.0,119860.0,0.00445761]
[1753217717975,0.3861236,119850.0,119840.0,0.1945]
[1753217718181,1.31110866,119850.0,119840.0,0.1945]
[1753217718775,0.73638866,119850.0,119840.0,0.1945]
[1753217718978,1.31110866,119850.0,119840.0,0.1945]
[1753217719481,1.31110866,119850.0,119840.0,0.2115]
[1753217720082,1.31110866,119850.0,119840.0,0.24459]
[1753217720277,1.49765266,119850.0,119840.0,0.26859]
[1753217720477,1.49765266,119850.0,119840.0,0.32814516]
[1753217720782,1.1473876,119850.0,119840.0,0.42300516]
[1753217721083,0.5726676,119850.0,119840.0,0.42300516]
[1753217721283,1.1473876,119850.0,119840.0,0.51540335]
[1753217723677,0.5726676,119850.0,119840.0,0.51540335]
[1753217723874,1.1473876,119850.0,119840.0,0.51540335]
[1753217725281,1.0689776,119850.0,119840.0,0.51540335]
[1753217726584,1.0689776,119850.0,119840.0,0.45584819]
[1753217726785,1.0352176,119850.0,119840.0,0.45584819]
[1753217726983,0.3533276,119850.0,119840.0,0.97291075]
[1753217727186,0.9280476,119850.0,119840.0,1.03246591]
[1753217727480,0.9280476,119850.0,119840.0,0.86566841]
[1753217727787,0.9587476,119850.0,119840.0,1.03246591]
[1753217727987,1.0352176,119850.0,119840.0,0.86566841]
[1753217728380,1.0352176,119850.0,119840.0,0.80611325]
[1753217729279,1.0352176,119850.0,119840.0,0.97291075]
[1753217729481,1.0352176,119850.0,119840.0,0.62264569]
[1753217729684,1.0352176,119850.0,119840.0,0.97291075]
[1753217729876,1.0352176,119850.0,119840.0,0.62264569]
[1753217730079,1.0352176,119850.0,119840.0,0.80611325]
[1753217730381,1.0352176,119850.0,119840.0,0.97291075]
[1753217730688,1.0352176,119850.0,119840.0,0.80611325]
[1753217731086,1.0352176,119850.0,119840.0,0.97291075]
[1753217731590,1.0352176,119850.0,119840.0,1.03246591]
[1753217732791,1.0352176,119850.0,119840.0,0.80611325]
[1753217733389,1.0689776,119850.0,119840.0,0.80611325]
[1753217733589,1.1473876,119850.0,119840.0,0.80611325]
[1753217733989,1.0689776,119850.0,119840.0,0.80611325]
[1753217734190,1.0352176,119850.0,119840.0,0.80611325]
[1753217736186,1.0352176,119850.0,119840.0,0.86566841]
[1753217736390,1.0689776,119850.0,119840.0,0.86566841]
[1753217737895,1.0352176,119850.0,119840.0,1.03246591]
[1753217738689,1.0352176,119850.0,119840.0,0.68220085]
[1753217739090,1.0352176,119850.0,119840.0,1.03246591]
[1753217741597,1.0352176,119850.0,119840.0,0.87870459]
[1753217741803,1.0352176,119850.0,119840.0,0.52843953]
[1753217742099,1.1473876,119850.0,119840.0,0.87870459]
[1753217742501,1.1473876,119850.0,119840.0,0.98594693]
[1753217743404,1.0352176,119850.0,119840.0,1.06063732]
[1753217745607,1.0352176,119850.0,119840.0,0.89383982]
[1753217745905,1.0352176,119850.0,119840.0,1.06063732]
[1753217747205,1.0352176,119850.0,119840.0,0.98594694]
[1753217747402,1.0352176,119850.0,119840.0,0.63568188]
[1753217747704,1.0352176,119850.0,119840.0,0.99572419]
[1753217747904,1.0352176,119850.0,119840.0,1.07052724]
[1753217748104,1.0352176,119850.0,119840.0,0.99572419]
[1753217748806,1.0352176,119850.0,119840.0,0.82892669]
[1753217749305,1.1473876,119850.0,119840.0,0.82892669]
[1753217749605,0.5726676,119850.0,119840.0,0.82892669]
[1753217749804,1.1470676,119850.0,119840.0,0.82892669]
[1753217750399,1.49733266,119850.0,119840.0,0.39552163]
[1753217750602,1.49733266,119850.0,119840.0,0.23101843]
[1753217750801,1.49733266,119850.0,119840.0,0.21607351]
[1753217750997,1.49733266,119850.0,119840.0,0.14530034]
[1753217751198,0.1668114,119830.0,119820.0,0.18918519]
[1753217751402,1.09143646,119830.0,119820.0,0.16225839]
[1753217751602,2.59143646,119830.0,119820.0,0.18817335]
[1753217752004,2.59143646,119830.0,119820.0,0.21300335]
[1753217752708,2.2411714,119830.0,119820.0,0.50169865]
[1753217753006,2.2421714,119830.0,119820.0,0.33787335]
[1753217753406,2.2431714,119830.0,119820.0,0.40871812]
[1753217754103,2.2431314,119830.0,119820.0,0.40871812]
[1753217755307,2.4296754,119830.0,119820.0,0.40871812]
[1753217755700,2.77994046,119830.0,119820.0,0.40871812]
[1753217756006,2.77994046,119830.0,119820.0,0.26201812]
[1753217756511,2.77994046,119830.0,119820.0,0.28684812]
[1753217758009,2.77994046,119830.0,119820.0,0.09985812]
[1753217758402,2.77994046,119830.0,119820.0,0.21413812]
[1753217758602,2.77994046,119830.0,119820.0,0.26201812]
[1753217759511,2.77994046,119830.0,119820.0,0.30679094]
[1753217760306,1.8553554,119830.0,119820.0,0.30679094]
[1753217760512,2.77994046,119830.0,119820.0,0.30679094]
[1753217761105,2.77994046,119830.0,119820.0,0.14463094]
[1753217761508,2.4296354,119830.0,119820.0,0.30679094]
[1753217761811,2.77990046,119830.0,119820.0,0.33162094]
[1753217765315,2.4296354,119830.0,119820.0,0.33162094]
[1753217765613,2.77990046,119830.0,119820.0,0.33162094]
[1753217766316,2.77986046,119830.0,119820.0,0.45349094]
[1753217768713,2.20562046,119830.0,119820.0,0.45349094]
[1753217768914,2.77986046,119830.0,119820.0,0.45349094]
[1753217771423,2.77986046,119830.0,119820.0,0.33162094]
[1753217776123,2.77986046,119830.0,119820.0,0.28684812]
[1753217776821,2.4294754,119830.0,119820.0,0.76276318]
[1753217777026,2.4294754,119830.0,119820.0,0.41249812]
[1753217777226,2.4294754,119830.0,119820.0,0.42553799]
[1753217777824,2.77974046,119830.0,119820.0,0.42553799]
[1753217778024,2.77974046,119830.0,119820.0,0.29988799]
[1753217780120,2.77974046,119830.0,119820.0,0.35958196]
[1753217780825,2.77974046,119830.0,119820.0,0.33475196]
[1753217781520,2.77974046,119830.0,119820.0,0.47131196]
[1753217781725,2.4294754,119830.0,119820.0,0.48339196]
[1753217782826,2.4294754,119830.0,119820.0,0.65021726]
[1753217783220,2.4294754,119830.0,119820.0,0.41065812]
[1753217783420,2.4294754,119830.0,119820.0,0.48358425]
[1753217787022,2.77974046,119830.0,119820.0,0.38860425]
[1753217787225,2.77974046,119830.0,119820.0,0.35793425]
[1753217792431,2.4294754,119830.0,119820.0,0.34489443]
[1753217792632,2.4294754,119830.0,119820.0,0.35793461]
[1753217792836,2.77974046,119830.0,119820.0,0.48358461]
[1753217793340,2.4294754,119830.0,119820.0,0.48358461]
[1753217793928,2.4294754,119830.0,119820.0,0.4236983]
[1753217797741,2.4294754,119830.0,119820.0,0.48362319]
[1753217798141,2.4294754,119830.0,119820.0,0.83388825]
[1753217798440,2.4294754,119830.0,119820.0,0.48362319]
[1753217799541,0.3553554,119830.0,119820.0,0.83388825]
[1753217799740,0.9291954,119830.0,119820.0,0.94078876]
[1753217799941,0.9291954,119830.0,119820.0,1.01559556]
[1753217800441,0.3553554,119830.0,119820.0,1.01559556]
[1753217800737,0.3553554,119830.0,119820.0,0.4236983]
[1753217800938,0.70562046,119830.0,119820.0,0.4732766]
[1753217801143,0.70562046,119830.0,119820.0,0.37292253]
[1753217801538,0.70562046,119830.0,119820.0,0.35988235]
[1753217801739,0.70562046,119830.0,119820.0,0.37292234]
[1753217802947,0.70562046,119830.0,119820.0,0.29804811]
[1753217805456,0.70562046,119830.0,119820.0,0.30782779]
[1753217805948,0.70562046,119830.0,119820.0,0.29804811]
[1753217807549,0.70562046,119830.0,119820.0,0.29804795]
[1753217807950,0.70562046,119830.0,119820.0,0.37292218]
[1753217810655,0.70562046,119830.0,119820.0,0.3729224]
[1753217811742,1.27930046,119830.0,119820.0,0.3729224]
[1753217812556,1.27930046,119830.0,119820.0,0.29804817]
[1753217815852,1.27930046,119830.0,119820.0,0.27505817]
[1753217816245,1.27930046,119830.0,119820.0,0.29871817]
[1753217816851,1.27930046,119830.0,119820.0,0.42441817]
[1753217817851,0.9290354,119830.0,119820.0,0.42441817]
[1753217818047,1.27930046,119830.0,119820.0,0.42441817]
[1753217819654,1.27930046,119830.0,119820.0,0.41137812]
[1753217819854,1.27930046,119830.0,119820.0,0.42441834]
[1753217820257,1.27930046,119830.0,119820.0,0.41137812]
[1753217820455,1.27930046,119830.0,119820.0,0.42441834]
[1753217820655,1.27930046,119830.0,119820.0,0.29871834]
[1753217821357,1.45566498,119830.0,119820.0,0.11289834]
[1753217821556,1.45566498,119830.0,119820.0,0.27352834]
[1753217822158,0.2451854,119820.0,119810.0,0.14573423]
[1753217822458,1.14978977,119820.0,119810.0,0.01304093]
[1753217822853,0.91668498,119820.0,119810.0,0.06596714]
[1753217823355,0.91668498,119820.0,119810.0,0.04457534]
[1753217823552,0.91768498,119820.0,119810.0,0.005]
[1753217823754,0.91868498,119820.0,119810.0,0.005]
[1753217824558,0.91768498,119820.0,119810.0,0.003]
[1753217824757,0.91868498,119820.0,119810.0,0.0451293]
[1753217825161,0.92976675,119820.0,119810.0,0.0451293]
[1753217826052,0.92976675,119820.0,119810.0,0.0421293]
[1753217826361,0.5785994,119820.0,119810.0,0.0421293]
[1753217826658,0.92976675,119820.0,119810.0,0.0893293]
[1753217827860,0.92976675,119820.0,119810.0,0.0482]
[1753217828365,0.92976675,119820.0,119810.0,0.19544]
[1753217829062,0.92976675,119820.0,119810.0,0.23790155]
[1753217832356,0.92976675,119820.0,119810.0,0.29773765]
[1753217832559,0.92976675,119820.0,119810.0,0.30420417]
[1753217833665,0.92976675,119820.0,119810.0,0.36404027]
[1753217835369,0.92976675,119820.0,119810.0,0.37708106]
[1753217837067,0.92976675,119820.0,119810.0,0.36404027]
[1753217837267,0.92976675,119820.0,119810.0,0.37708106]
[1753217840869,0.92976675,119820.0,119810.0,0.18264106]
[1753217841167,0.92976675,119820.0,119810.0,0.22916106]
[1753217841364,0.92976675,119820.0,119810.0,0.16932496]
[1753217841668,0.92976675,119820.0,119810.0,0.31656496]
[1753217843070,0.92976675,119820.0,119810.0,0.44071496]
[1753217844070,0.92976675,119820.0,119810.0,0.44065496]
[1753217844269,0.92976675,119820.0,119810.0,0.4504356]
[1753217844567,0.90764675,119820.0,119810.0,0.4504356]
[1753217844869,1.38846675,119820.0,119810.0,0.5102717]
[1753217845266,1.56389374,119820.0,119810.0,0.77356887]
[1753217845667,1.56389374,119820.0,119810.0,0.5102717]
[1753217846165,1.56389374,119820.0,119810.0,0.48745027]
[1753217846368,1.56389374,119820.0,119810.0,0.51027155]
[1753217846567,1.65643374,119820.0,119810.0,0.77356872]
[1753217847274,1.08307374,119820.0,119810.0,0.77356872]
[1753217847474,1.65639374,119820.0,119810.0,0.77356872]
[1753217847676,1.08307374,119820.0,119810.0,0.77356872]
[1753217847871,1.65639374,119820.0,119810.0,0.77356872]
[1753217848371,1.65639374,119820.0,119810.0,0.94040812]
[1753217848372,1.08307374,119820.0,119810.0,0.94040812]
[1753217848669,0.61866657,119820.0,119810.0,0.94046497]
[1753217848974,1.19198657,119820.0,119810.0,0.94046497]
[1753217850370,1.19198657,119820.0,119810.0,0.93068442]
[1753217850567,1.19198657,119820.0,119810.0,0.66738725]
[1753217850771,1.19198657,119820.0,119810.0,0.93068442]
[1753217851180,1.19198657,119820.0,119810.0,0.66738725]
[1753217851674,1.19198657,119820.0,119810.0,0.93068442]
[1753217851873,1.19198657,119820.0,119810.0,0.87079147]
[1753217852274,1.19198657,119820.0,119810.0,0.94558729]
[1753217853270,1.19198657,119820.0,119810.0,0.87079147]
[1753217854273,1.19198657,119820.0,119810.0,0.6074943]
[1753217854478,1.19198657,119820.0,119810.0,0.87079147]
[1753217855278,1.19198657,119820.0,119810.0,0.85775074]
[1753217855573,1.30738657,119820.0,119810.0,0.87079097]
[1753217857178,1.30738657,119820.0,119810.0,0.87079096]
[1753217858075,1.30738657,119820.0,119810.0,0.88057097]
[1753217858478,1.30738657,119820.0,119810.0,0.87079096]
[1753217858684,1.30738657,119820.0,119810.0,0.95536662]
[1753217858882,1.30738657,119820.0,119810.0,0.94558678]
[1753217859177,1.30738657,119820.0,119810.0,0.95536661]
[1753217859380,1.30738657,119820.0,119810.0,0.94558678]
[1753217860478,1.30738657,119820.0,119810.0,0.87079096]
[1753217861478,1.30738657,119820.0,119810.0,0.94558678]
[1753217861873,1.30738657,119820.0,119810.0,0.95536661]
[1753217863382,0.73414657,119820.0,119810.0,0.95536661]
[1753217863582,1.30726657,119820.0,119810.0,0.95536661]
[1753217864082,1.30726657,119820.0,119810.0,0.88057079]
[1753217864884,1.30726657,119820.0,119810.0,0.85775074]
[1753217865085,1.30726657,119820.0,119810.0,0.88057035]
[1753217865885,1.30726657,119820.0,119810.0,0.94046784]
[1753217867580,1.30726657,119820.0,119810.0,0.67717067]
[1753217867783,1.39980657,119820.0,119810.0,0.94046784]
[1753217873993,1.39980657,119820.0,119810.0,0.930688]
[1753217874199,1.39980657,119820.0,119810.0,0.94046782]
[1753217874601,1.39980657,119820.0,119810.0,0.94046781]
[1753217875301,1.1365094,119820.0,119810.0,0.94046782]
[1753217875601,1.39980657,119820.0,119810.0,0.94046782]
[1753217877104,1.39980657,119820.0,119810.0,0.88057033]
[1753217879896,0.4708494,119820.0,119810.0,0.95536615]
[1753217880101,1.0437294,119820.0,119810.0,0.95536594]
[1753217880604,1.30702657,119820.0,119810.0,0.95536594]
[1753217882101,1.30702657,119820.0,119810.0,0.93254656]
[1753217882406,1.30702657,119820.0,119810.0,0.95536514]
[1753217885211,1.30702657,119820.0,119810.0,0.94232595]
[1753217885509,1.30702657,119820.0,119810.0,0.9553653]
[1753217886909,1.0437294,119820.0,119810.0,0.9553653]
[1753217887111,1.30702657,119820.0,119810.0,0.9553653]
[1753217887309,1.0437294,119820.0,119810.0,0.9553653]
[1753217887511,1.30702657,119820.0,119810.0,0.88056948]
[1753217891115,1.30702657,119820.0,119810.0,0.87079009]
[1753217891315,1.30702657,119820.0,119810.0,0.8805696]
[1753217893614,1.0437294,119820.0,119810.0,0.8805696]
[1753217893816,1.30702657,119820.0,119810.0,0.8805696]
[1753217895319,1.30702657,119820.0,119810.0,0.61727243]
[1753217895518,1.30702657,119820.0,119810.0,0.8805696]
[1753217900523,1.30702657,119820.0,119810.0,0.86753022]
[1753217900822,1.30702657,119820.0,119810.0,0.88056953]
[1753217902324,1.30702657,119820.0,119810.0,0.95536535]
[1753217902619,1.0437294,119820.0,119810.0,0.95536535]
[1753217902817,1.30702657,119820.0,119810.0,0.95536535]
[1753217907827,1.0437294,119820.0,119810.0,0.95536535]
[1753217908221,1.30702657,119820.0,119810.0,0.95536535]
[1753217908416,0.3553694,119820.0,119810.0,0.95536535]
[1753217908617,0.9279294,119820.0,119810.0,1.20387149]
[1753217909228,0.9279294,119820.0,119810.0,0.94057432]
[1753217909625,0.9279294,119820.0,119810.0,0.94057383]
[1753217909817,1.30188657,119820.0,119810.0,0.94057383]
[1753217910024,1.41352657,119820.0,119810.0,0.94057383]
[1753217910227,1.41352657,119820.0,119810.0,0.8805692]
[1753217911229,1.39140657,119820.0,119810.0,0.8805692]
[1753217912928,1.1281094,119820.0,119810.0,0.88056932]
[1753217914028,1.0385894,119820.0,119810.0,0.88056932]
[1753217916726,1.65470374,119820.0,119810.0,0.45043275]
[1753217916926,1.67682374,119820.0,119810.0,0.13252275]
[1753217917225,1.67682374,119820.0,119810.0,0.18185275]
[1753217917427,1.67682374,119820.0,119810.0,0.29571275]
[1753217917628,1.67682374,119820.0,119810.0,0.31930275]
[1753217918832,1.67682374,119820.0,119810.0,0.29648417]
[1753217919031,1.67682374,119820.0,119810.0,0.31930452]
[1753217919624,1.67682374,119820.0,119810.0,0.30952437]
[1753217919933,1.67682374,119820.0,119810.0,0.31930451]
[1753217923035,1.67682374,119820.0,119810.0,0.38432019]
[1753217927937,1.67682374,119820.0,119810.0,0.37127999]
[1753217928139,1.67682374,119820.0,119810.0,0.38432018]
[1753217929737,1.67682374,119820.0,119810.0,0.39410032]
[1753217930038,1.67682374,119820.0,119810.0,0.3193045]
[1753217930639,1.1502294,119820.0,119810.0,0.1325245]
[1753217930833,0.3839104,119810.0,119800.0,0.24233488]
[1753217931138,0.1668543,119800.0,119790.0,0.47502299]
[1753217931338,1.48287864,119800.0,119790.0,0.52047299]
[1753217931539,1.48287864,119800.0,119790.0,0.56185905]
[1753217931738,1.21958147,119800.0,119790.0,0.56185905]
[1753217931938,1.21958147,119800.0,119790.0,0.59216905]
[1753217932135,1.21958147,119800.0,119790.0,0.68008905]
[1753217932540,1.48387864,119800.0,119790.0,0.68108905]
[1753217933140,1.48387864,119800.0,119790.0,0.41779188]
[1753217933340,1.48387864,119800.0,119790.0,0.33239557]
[1753217933840,1.48387864,119800.0,119790.0,0.40810557]
[1753217934135,0.9582843,119800.0,119790.0,0.83927094]
[1753217934440,1.22158147,119800.0,119790.0,0.91417851]
[1753217934736,0.9361643,119800.0,119790.0,0.91417851]
[1753217934941,1.19946147,119800.0,119790.0,0.91417851]